[Event "Panchenko Memorial-A 2021"]
[Site "Chelyabinsk"]
[Date "2021.09.18"]
[Round "6.1"]
[White "Salemgareev, Tagir"]
[Black "Timofeev, Artyom"]
[Result "1-0"]
[ECO "D30"]
[WhiteElo "2463"]
[BlackElo "2583"]
[Annotator "ChessBase"]
[PlyCount "103"]
[EventDate "2021.09.13"]
[EventType "swiss"]
[EventCountry "RUS"]
[SourceTitle "playchess.com"]
[Source "ChessBase"]
[SourceQuality "1"]
[TimeControl "5400+30"]

1. d4 {[%emt 0:13:35]} d5 {[%emt 0:00:11]} 2. c4 {[%emt 0:00:06]} e6 {[%emt 0:00:21]} 3. Nf3 {[%emt 0:00:22]} b6 {[%emt 0:06:09]} 4. Nc3 {[%emt 0:01:37]} Bb7 {[%emt 0:00:44]} 5. cxd5 {[%emt 0:04:40]} exd5 {[%emt 0:00:07]} 6. g3 {[%emt 0:00:04]} Nf6 {[%emt 0:13:20]} 7. Bg2 {[%emt 0:00:41]} Be7 {[%emt 0:00:12]} 8. O-O {[%emt 0:00:15]} O-O {[%emt 0:00:07]} 9. Ne5 {[%emt 0:05:21]} Na6 {[%emt 0:03:10]} 10. Bg5 {[%emt 0:11:46]} h6 {[%emt 0:02:30]} 11. Bxf6 {[%emt 0:04:07]} Bxf6 {[%emt 0:00:06]} 12. Ng4 {[%emt 0:00:37]} Be7 {[%emt 0:02:25]} 13. Qb3 {[%emt 0:07:53]} c6 {[%emt 0:01:25]} 14. Rad1 {[%emt 0:00:21]} Qd6 {[%emt 0:11:12]} 15. e4 {[%emt 0:06:41]} dxe4 {[%emt 0:00:40]} 16. Bxe4 {[%emt 0:00:08]} Rad8 {[%emt 0:08:55]} 17. Ne5 {[%emt 0:07:10]} Bf6 {[%emt 0:00:13]} 18. Rfe1 {[%emt 0:00:38]} Nb8 {[%emt 0:08:46]} 19. Nb5 {[%emt 0:12:27]} cxb5 {[%emt 0:01:41]} 20. Bxb7 {[%emt 0:00:05]} b4 {[%emt 0:00:20]} 21. Bf3 {[%emt 0:04:01]} a5 {[%emt 0:02:28]} 22. Qc4 {[%emt 0:13:48]} Qe6 {[%emt 0:11:19]} 23. Qxe6 {[%emt 0:01:25]} fxe6 {[%emt 0:00:06]} 24. Bg4 {[%emt 0:00:03]} Rd6 {[%emt 0:18:36]} 25. Ng6 {[%emt 0:01:42]} Rfd8 {[%emt 0:05:58]} 26. Bxe6+ {[%emt 0:01:39]} Rxe6 {[%emt 0:00:06]} 27. Rxe6 {[%emt 0:00:04]} Kf7 {[%emt 0:00:04]} 28. Nf4 {[%emt 0:00:53]} g5 {[%emt 0:00:06]} 29. Rxf6+ {[%emt 0:00:20]} Kxf6 {[%emt 0:00:05]} 30. Ng2 {[%emt 0:00:03]} Nc6 {[%emt 0:02:26]} 31. d5 {[%emt 0:00:03]} Ne5 {[%emt 0:00:32]} 32. Ne3 {[%emt 0:00:08]} b5 {[%emt 0:00:07]} 33. Kf1 {[%emt 0:00:58]} Nc4 {[%emt 0:00:45]} 34. b3 {[%emt 0:00:20]} Nd6 {[%emt 0:00:05]} 35. Ng4+ {[%emt 0:01:45]} Kg6 {[%emt 0:00:33]} 36. Re1 {[%emt 0:00:15]} Nf5 {[%emt 0:00:40]} 37. Re6+ {[%emt 0:00:33]} Kg7 {[%emt 0:00:06]} 38. Re5 {[%emt 0:00:20]} Kg6 {[%emt 0:00:24]} 39. Ne3 {[%emt 0:00:24]} Nd6 {[%emt 0:01:36]} 40. Re6+ {[%emt 0:00:10]} Kh7 {[%emt 0:00:18]} 41. Ke2 {[%emt 0:00:47]} h5 {[%emt 0:00:20]} 42. Kd3 {[%emt 0:00:12]} Nf7 {[%emt 0:00:26]} 43. Kd4 {[%emt 0:00:27]} a4 {[%emt 0:00:46]} 44. Kc5 {[%emt 0:00:15]} axb3 {[%emt 0:00:12]} 45. axb3 {[%emt 0:00:04]} Ra8 {[%emt 0:00:03]} 46. d6 {[%emt 0:00:37]} Nd8 {[%emt 0:00:35]} 47. Re7+ {[%emt 0:00:10]} Kg6 {[%emt 0:00:05]} 48. d7 {[%emt 0:00:50]} Ra6 {[%emt 0:01:17]} 49. Re8 {[%emt 0:00:43]} Nb7+ {[%emt 0:00:06]} 50. Kxb5 {[%emt 0:00:14]} Rd6 {[%emt 0:00:16]} 51. Nc4 {[%emt 0:00:28]} Rxd7 {[%emt 0:00:08]} 52. Kc6 {[%emt 0:00:30]} 1-0

[Event "Panchenko Memorial-A 2021"]
[Site "Chelyabinsk"]
[Date "2021.09.18"]
[Round "6.2"]
[White "Lintchevski, Daniil"]
[Black "Makarian, Rudik"]
[Result "1-0"]
[ECO "B91"]
[WhiteElo "2561"]
[BlackElo "2474"]
[Annotator "ChessBase"]
[PlyCount "111"]
[EventDate "2021.09.13"]
[EventType "swiss"]
[EventCountry "RUS"]
[SourceTitle "playchess.com"]
[Source "ChessBase"]
[SourceQuality "1"]
[TimeControl "5400+30"]

1. e4 {[%emt 0:00:36]} c5 {[%emt 0:00:02]} 2. Nf3 {[%emt 0:00:54]} d6 {[%emt 0:00:03]} 3. d4 {[%emt 0:00:17]} cxd4 {[%emt 0:00:21]} 4. Nxd4 {[%emt 0:00:14]} Nf6 {[%emt 0:00:02]} 5. Nc3 {[%emt 0:00:31]} a6 {[%emt 0:00:02]} 6. g3 {[%emt 0:00:23]} e6 {[%emt 0:00:36]} 7. Bg2 {[%emt 0:00:24]} Bd7 {[%emt 0:00:10]} 8. a4 {[%emt 0:05:06]} Nc6 {[%emt 0:00:25]} 9. Nxc6 {[%emt 0:00:49]} Bxc6 {[%emt 0:00:07]} 10. a5 {[%emt 0:01:46]} Be7 {[%emt 0:00:08]} 11. O-O {[%emt 0:00:58]} O-O {[%emt 0:00:18]} 12. Be3 {[%emt 0:01:22]} Qb8 {[%emt 0:18:31]} 13. Qe2 {[%emt 0:02:11]} Nd7 {[%emt 0:02:15]} 14. Nd5 {[%emt 0:08:03]} Bxd5 {[%emt 0:01:42]} 15. exd5 {[%emt 0:00:07]} e5 {[%emt 0:00:03]} 16. c4 {[%emt 0:01:13]} Bd8 {[%emt 0:06:59]} 17. b4 {[%emt 0:05:12]} b6 {[%emt 0:00:31]} 18. Rfc1 {[%emt 0:18:55]} bxa5 {[%emt 0:01:42]} 19. bxa5 {[%emt 0:03:35]} Ra7 {[%emt 0:05:38]} 20. Bxa7 {[%emt 0:02:00]} Qxa7 {[%emt 0:00:06]} 21. c5 {[%emt 0:00:03]} Nxc5 {[%emt 0:00:05]} 22. Qe3 {[%emt 0:00:21]} h6 {[%emt 0:05:49]} 23. h4 {[%emt 0:00:41]} f5 {[%emt 0:00:18]} 24. Rc4 {[%emt 0:03:37]} f4 {[%emt 0:01:17]} 25. gxf4 {[%emt 0:02:44]} Bxh4 {[%emt 0:00:15]} 26. Rf1 {[%emt 0:03:01]} Rxf4 {[%emt 0:01:17]} 27. Rxf4 {[%emt 0:00:05]} Bg5 {[%emt 0:00:02]} 28. Qh3 {[%emt 0:02:38]} Bxf4 {[%emt 0:00:30]} 29. Qc8+ {[%emt 0:00:12]} Kh7 {[%emt 0:00:18]} 30. Qf5+ {[%emt 0:05:34]} g6 {[%emt 0:05:08]} 31. Qf8 {[%emt 0:01:00]} Nd3 {[%emt 0:12:21]} 32. Qxd6 {[%emt 0:04:04]} e4 {[%emt 0:00:08]} 33. Qe6 {[%emt 0:04:27]} e3 {[%emt 0:00:53]} 34. Be4 {[%emt 0:03:35]} exf2+ {[%emt 0:02:11]} 35. Kg2 {[%emt 0:02:36]} Ne5 {[%emt 0:00:06]} 36. Rxf2 {[%emt 0:02:16]} Qe3 {[%emt 0:00:17]} 37. Bf3 {[%emt 0:03:01]} Bg5 {[%emt 0:05:59]} 38. d6 {[%emt 0:02:26]} Bh4 {[%emt 0:04:09]} 39. Rf1 {[%emt 0:00:03]} h5 {[%emt 0:12:01]} 40. d7 {[%emt 0:00:01]} Kh6 {[%emt 0:02:29]} 41. Qd6 {[%emt 0:02:14]} Qf4 {[%emt 0:03:17]} 42. Kh1 {[%emt 0:02:46]} Qg3 {[%emt 0:03:01]} 43. Bg2 {[%emt 0:02:12]} Bg5 {[%emt 0:00:05]} 44. Qd4 {[%emt 0:00:25]} Be7 {[%emt 0:05:46]} 45. d8=Q {[%emt 0:01:52]} Bxd8 {[%emt 0:00:03]} 46. Qxd8 {[%emt 0:00:07]} Ng4 {[%emt 0:00:08]} 47. Qd2+ {[%emt 0:01:22]} g5 {[%emt 0:00:19]} 48. Bf3 {[%emt 0:01:28]} Ne3 {[%emt 0:00:27]} 49. Rf2 {[%emt 0:00:05]} Qh3+ {[%emt 0:00:31]} 50. Kg1 {[%emt 0:00:02]} Qg3+ {[%emt 0:00:04]} 51. Bg2 {[%emt 0:00:51]} Ng4 {[%emt 0:00:02]} 52. Rf5 {[%emt 0:01:22]} Qh2+ {[%emt 0:00:09]} 53. Kf1 {[%emt 0:00:01]} Qh4 {[%emt 0:00:02]} 54. Qd6+ {[%emt 0:00:11]} Kg7 {[%emt 0:00:04]} 55. Qe7+ {[%emt 0:00:11]} Kg6 {[%emt 0:00:04]} 56. Qe6+ {[%emt 0:00:05]} 1-0

[Event "Panchenko Memorial-A 2021"]
[Site "Chelyabinsk"]
[Date "2021.09.18"]
[Round "6.4"]
[White "Ansat, Aldiyar"]
[Black "Pridorozhni, Aleksei"]
[Result "0-1"]
[ECO "C42"]
[WhiteElo "2396"]
[BlackElo "2550"]
[Annotator "ChessBase"]
[PlyCount "136"]
[EventDate "2021.09.13"]
[EventType "swiss"]
[EventCountry "RUS"]
[SourceTitle "playchess.com"]
[Source "ChessBase"]
[SourceQuality "1"]
[TimeControl "5400+30"]

1. e4 {[%emt 0:00:02]} e5 {[%emt 0:00:07]} 2. Nf3 {[%emt 0:00:09]} Nf6 {[%emt 0:00:08]} 3. Nxe5 {[%emt 0:00:20]} d6 {[%emt 0:00:07]} 4. Nf3 {[%emt 0:00:11]} Nxe4 {[%emt 0:00:07]} 5. Bd3 {[%emt 0:00:24]} Nf6 {[%emt 0:00:07]} 6. O-O {[%emt 0:00:37]} Be7 {[%emt 0:00:05]} 7. h3 {[%emt 0:08:01]} O-O {[%emt 0:00:10]} 8. c3 {[%emt 0:01:27]} Nbd7 {[%emt 0:05:10]} 9. Bc2 {[%emt 0:03:06]} Ne5 {[%emt 0:08:25]} 10. d4 {[%emt 0:04:10]} Nxf3+ {[%emt 0:00:17]} 11. Qxf3 {[%emt 0:00:02]} c6 {[%emt 0:00:11]} 12. Re1 {[%emt 0:04:48]} Be6 {[%emt 0:00:30]} 13. Bg5 {[%emt 0:08:28]} Qb6 {[%emt 0:06:53]} 14. b3 {[%emt 0:03:59]} Qa5 {[%emt 0:00:26]} 15. Bh4 {[%emt 0:05:55]} Rfe8 {[%emt 0:00:49]} 16. Nd2 {[%emt 0:07:13]} Qh5 {[%emt 0:11:42]} 17. Qxh5 {[%emt 0:11:43]} Nxh5 {[%emt 0:00:17]} 18. Bxe7 {[%emt 0:00:12]} Rxe7 {[%emt 0:00:05]} 19. Re3 {[%emt 0:09:35]} Nf6 {[%emt 0:02:59]} 20. c4 {[%emt 0:04:46]} Kf8 {[%emt 0:02:44]} 21. Rae1 {[%emt 0:02:54]} Rae8 {[%emt 0:01:29]} 22. g4 {[%emt 0:11:08]} h6 {[%emt 0:00:16]} 23. f3 {[%emt 0:02:09]} c5 {[%emt 0:01:18]} 24. dxc5 {[%emt 0:02:19]} dxc5 {[%emt 0:00:06]} 25. f4 {[%emt 0:01:04]} b6 {[%emt 0:01:41]} 26. Nf3 {[%emt 0:01:36]} Bc8 {[%emt 0:00:37]} 27. Kf2 {[%emt 0:01:26]} Bb7 {[%emt 0:01:46]} 28. Ne5 {[%emt 0:01:13]} g5 {[%emt 0:00:42]} 29. Kg3 {[%emt 0:00:35]} Kg7 {[%emt 0:00:19]} 30. Bf5 {[%emt 0:03:03]} Rd8 {[%emt 0:03:55]} 31. fxg5 {[%emt 0:01:59]} hxg5 {[%emt 0:00:06]} 32. h4 {[%emt 0:00:25]} gxh4+ {[%emt 0:01:08]} 33. Kxh4 {[%emt 0:00:01]} Rd2 {[%emt 0:02:07]} 34. R3e2 {[%emt 0:01:02]} Rxe2 {[%emt 0:00:38]} 35. Rxe2 Ne4 {[%emt 0:01:53]} 36. Nd3 {[%emt 0:00:41]} Kf6 {[%emt 0:00:06]} 37. Bxe4 {[%emt 0:01:40]} Rxe4 {[%emt 0:01:23]} 38. Rf2+ {[%emt 0:00:01]} Ke7 {[%emt 0:00:07]} 39. Nf4 {[%emt 0:01:00]} Re1 {[%emt 0:01:58]} 40. Kg5 {[%emt 0:00:11]} Rg1 {[%emt 0:03:13]} 41. Re2+ {[%emt 0:00:44]} Kf8 {[%emt 0:00:47]} 42. Rd2 {[%emt 0:00:09]} Ke7 {[%emt 0:00:55]} 43. Re2+ {[%emt 0:00:02]} Kd6 {[%emt 0:00:15]} 44. Re8 {[%emt 0:01:27]} Bf3 {[%emt 0:00:38]} 45. Kf6 {[%emt 0:00:30]} Rxg4 {[%emt 0:01:48]} 46. Kf5 {[%emt 0:00:22]} Rg1 {[%emt 0:00:48]} 47. Rd8+ {[%emt 0:00:37]} Ke7 {[%emt 0:00:13]} 48. Rb8 {[%emt 0:00:32]} Ra1 {[%emt 0:00:30]} 49. Rc8 {[%emt 0:00:15]} Kd6 {[%emt 0:02:20]} 50. Rd8+ {[%emt 0:00:08]} Kc7 {[%emt 0:00:46]} 51. Rf8 {[%emt 0:00:02]} Rxa2 {[%emt 0:00:11]} 52. Rxf7+ {[%emt 0:00:01]} Kb8 {[%emt 0:00:07]} 53. Ke6 {[%emt 0:02:02]} Rh2 {[%emt 0:01:09]} 54. Nd3 {[%emt 0:00:31]} Rh6+ {[%emt 0:00:19]} 55. Ke7 {[%emt 0:00:25]} Bg4 {[%emt 0:00:24]} 56. Nf4 {[%emt 0:00:33]} Bd1 {[%emt 0:00:26]} 57. Rf8+ {[%emt 0:00:32]} Kb7 {[%emt 0:00:06]} 58. Nd3 {[%emt 0:00:32]} Bxb3 {[%emt 0:00:19]} 59. Ne5 {[%emt 0:00:01]} a5 {[%emt 0:01:00]} 60. Nf7 {[%emt 0:00:32]} Rh7 {[%emt 0:00:21]} 61. Kd8 {[%emt 0:00:54]} a4 {[%emt 0:00:37]} 62. Ng5 {[%emt 0:00:31]} Rc7 {[%emt 0:00:28]} 63. Rf4 {[%emt 0:00:29]} a3 {[%emt 0:00:21]} 64. Ne6 {[%emt 0:00:06]} Rc8+ {[%emt 0:00:23]} 65. Kd7 {[%emt 0:00:08]} a2 {[%emt 0:00:09]} 66. Rf1 {[%emt 0:00:15]} Bxc4 {[%emt 0:00:06]} 67. Ra1 {[%emt 0:00:05]} Bxe6+ {[%emt 0:00:06]} 68. Kxe6 {[%emt 0:00:05]} Ra8 {[%emt 0:00:03]} 0-1

[Event "Panchenko Memorial-A 2021"]
[Site "Chelyabinsk"]
[Date "2021.09.18"]
[Round "6.5"]
[White "Afanasiev, Nikita"]
[Black "Lazavik, Denis"]
[Result "1-0"]
[ECO "A07"]
[WhiteElo "2548"]
[BlackElo "2440"]
[Annotator "ChessBase"]
[PlyCount "83"]
[EventDate "2021.09.13"]
[EventType "swiss"]
[EventCountry "RUS"]
[SourceTitle "playchess.com"]
[Source "ChessBase"]
[SourceQuality "1"]
[TimeControl "5400+30"]

1. Nf3 {[%emt 0:09:31]} d5 {[%emt 0:00:26]} 2. g3 {[%emt 0:00:06]} Bg4 {[%emt 0:01:03]} 3. Bg2 {[%emt 0:00:17]} c6 {[%emt 0:00:47]} 4. O-O {[%emt 0:01:17]} Nf6 {[%emt 0:00:39]} 5. h3 {[%emt 0:00:44]} Bh5 {[%emt 0:03:09]} 6. d3 {[%emt 0:02:37]} Nbd7 {[%emt 0:00:53]} 7. g4 {[%emt 0:06:36]} Bg6 {[%emt 0:00:43]} 8. Nh4 {[%emt 0:00:06]} e5 {[%emt 0:09:14]} 9. e3 {[%emt 0:01:43]} Ng8 {[%emt 0:20:37]} 10. Nxg6 {[%emt 0:10:10]} hxg6 {[%emt 0:00:17]} 11. Nd2 {[%emt 0:00:06]} Bc5 {[%emt 0:10:28]} 12. c4 {[%emt 0:05:19]} Ne7 {[%emt 0:03:36]} 13. cxd5 {[%emt 0:05:56]} cxd5 {[%emt 0:01:39]} 14. Qb3 {[%emt 0:03:56]} Qc7 {[%emt 0:07:06]} 15. Nb1 {[%emt 0:03:45]} O-O {[%emt 0:09:51]} 16. Nc3 {[%emt 0:02:06]} d4 {[%emt 0:06:29]} 17. exd4 {[%emt 0:14:10]} exd4 {[%emt 0:00:29]} 18. Ne4 {[%emt 0:00:37]} Nc6 {[%emt 0:01:45]} 19. Bd2 {[%emt 0:00:57]} Rae8 {[%emt 0:02:42]} 20. Rac1 {[%emt 0:00:36]} Bb6 {[%emt 0:04:34]} 21. f4 {[%emt 0:10:49]} Qb8 {[%emt 0:03:14]} 22. f5 {[%emt 0:04:38]} Kh8 {[%emt 0:02:45]} 23. Qd1 {[%emt 0:06:24]} Nde5 {[%emt 0:02:40]} 24. Qe1 {[%emt 0:01:18]} f6 {[%emt 0:01:09]} 25. Qh4+ {[%emt 0:00:54]} Kg8 {[%emt 0:00:06]} 26. fxg6 {[%emt 0:00:19]} Nxg6 {[%emt 0:00:09]} 27. Qh5 {[%emt 0:02:18]} Re5 {[%emt 0:02:39]} 28. g5 {[%emt 0:03:58]} Nce7 {[%emt 0:00:45]} 29. Bb4 {[%emt 0:00:47]} Qd8 {[%emt 0:01:00]} 30. Rf2 {[%emt 0:01:50]} Rf7 {[%emt 0:02:25]} 31. Rcf1 {[%emt 0:00:29]} Nh8 {[%emt 0:00:38]} 32. Qd1 {[%emt 0:00:30]} fxg5 {[%emt 0:01:12]} 33. Nd6 {[%emt 0:00:49]} Rxf2 {[%emt 0:00:15]} 34. Rxf2 {[%emt 0:00:03]} Qd7 {[%emt 0:00:44]} 35. Qh5 {[%emt 0:01:06]} Nhg6 {[%emt 0:00:36]} 36. Nf7 {[%emt 0:00:19]} Rf5 {[%emt 0:00:27]} 37. Rxf5 {[%emt 0:00:50]} Qxf5 {[%emt 0:00:22]} 38. Nxg5 {[%emt 0:00:06]} Bd8 {[%emt 0:01:16]} 39. Be4 {[%emt 0:01:00]} Qe5 {[%emt 0:00:08]} 40. Qh7+ {[%emt 0:00:39]} Kf8 {[%emt 0:00:05]} 41. Qxg6 {[%emt 0:00:07]} Qg3+ {[%emt 0:00:34]} 42. Kh1 {[%emt 0:00:04]} 1-0

[Event "Panchenko Memorial-A 2021"]
[Site "Chelyabinsk"]
[Date "2021.09.19"]
[Round "8.1"]
[White "Afanasiev, Nikita"]
[Black "Salemgareev, Tagir"]
[Result "1/2-1/2"]
[ECO "A13"]
[WhiteElo "2548"]
[BlackElo "2463"]
[Annotator "ChessBase"]
[PlyCount "63"]
[EventDate "2021.09.13"]
[EventType "swiss"]
[EventCountry "RUS"]
[SourceTitle "playchess.com"]
[Source "ChessBase"]
[SourceQuality "1"]
[TimeControl "5400+30"]

1. c4 {[%emt 0:10:22]} e6 {[%emt 0:01:04]} 2. Nf3 {[%emt 0:00:38]} Nf6 {[%emt 0:01:11]} 3. g3 {[%emt 0:00:41]} d5 {[%emt 0:00:16]} 4. Bg2 {[%emt 0:00:48]} d4 {[%emt 0:00:11]} 5. O-O {[%emt 0:00:19]} c5 {[%emt 0:00:15]} 6. e3 {[%emt 0:01:40]} Nc6 {[%emt 0:01:30]} 7. exd4 {[%emt 0:01:24]} cxd4 {[%emt 0:00:07]} 8. d3 {[%emt 0:00:17]} Bd6 {[%emt 0:00:23]} 9. Re1 {[%emt 0:01:10]} O-O {[%emt 0:00:14]} 10. Bg5 {[%emt 0:02:29]} h6 {[%emt 0:01:01]} 11. Bxf6 {[%emt 0:00:11]} Qxf6 {[%emt 0:00:05]} 12. Nbd2 {[%emt 0:00:13]} Qe7 {[%emt 0:08:05]} 13. a3 {[%emt 0:08:26]} a5 {[%emt 0:00:21]} 14. Nb3 {[%emt 0:05:32]} Rd8 {[%emt 0:04:23]} 15. Rc1 {[%emt 0:10:17]} Bc7 {[%emt 0:07:34]} 16. Nbd2 {[%emt 0:05:22]} e5 {[%emt 0:15:42]} 17. Nh4 {[%emt 0:16:11]} Be6 {[%emt 0:08:57]} 18. Be4 {[%emt 0:03:38]} g6 {[%emt 0:05:18]} 19. Nhf3 {[%emt 0:02:29]} Qf6 {[%emt 0:10:06]} 20. Qe2 {[%emt 0:05:23]} Bg4 {[%emt 0:04:32]} 21. Qf1 {[%emt 0:00:53]} Kg7 {[%emt 0:00:50]} 22. h3 {[%emt 0:01:40]} Bf5 {[%emt 0:03:49]} 23. Qg2 {[%emt 0:02:07]} Bxe4 {[%emt 0:00:40]} 24. Rxe4 {[%emt 0:05:09]} a4 {[%emt 0:01:28]} 25. h4 {[%emt 0:00:28]} Qe7 {[%emt 0:05:46]} 26. g4 {[%emt 0:04:05]} Kh7 {[%emt 0:01:22]} 27. g5 {[%emt 0:00:37]} f5 {[%emt 0:00:30]} 28. gxf6 {[%emt 0:02:01]} Qxf6 {[%emt 0:00:05]} 29. Rce1 {[%emt 0:00:45]} Rd7 {[%emt 0:01:45]} 30. Rg4 Rf8 {[%emt 0:00:32]} 31. Rg3 {[%emt 0:01:28]} Nd8 {[%emt 0:02:39]} 32. Ne4 {[%emt 0:00:46]} 1/2-1/2

[Event "Panchenko Memorial-A 2021"]
[Site "Chelyabinsk"]
[Date "2021.09.19"]
[Round "8.6"]
[White "Gutenev, Alexander"]
[Black "Petrov, Nikita"]
[Result "1/2-1/2"]
[ECO "B47"]
[WhiteElo "2430"]
[BlackElo "2555"]
[Annotator "ChessBase"]
[PlyCount "21"]
[EventDate "2021.09.13"]
[EventType "swiss"]
[EventCountry "RUS"]
[SourceTitle "playchess.com"]
[Source "ChessBase"]
[SourceQuality "1"]
[TimeControl "5400+30"]

1. e4 {[%emt 0:02:17]} c5 {[%emt 0:00:15]} 2. Nf3 {[%emt 0:00:06]} e6 {[%emt 0:00:40]} 3. d4 {[%emt 0:00:04]} cxd4 {[%emt 0:00:05]} 4. Nxd4 {[%emt 0:00:05]} Nc6 {[%emt 0:00:25]} 5. Nc3 {[%emt 0:00:13]} Qc7 {[%emt 0:00:18]} 6. Be2 {[%emt 0:00:38]} Nf6 {[%emt 0:00:57]} 7. O-O {[%emt 0:00:28]} Be7 {[%emt 0:00:32]} 8. Be3 {[%emt 0:00:25]} O-O {[%emt 0:00:46]} 9. f4 {[%emt 0:00:11]} d6 {[%emt 0:00:16]} 10. Kh1 {[%emt 0:00:16]} Nxd4 {[%emt 0:04:48]} 11. Bxd4 {[%emt 0:02:42]} 1/2-1/2

[Event "Panchenko Memorial-A 2021"]
[Site "Chelyabinsk"]
[Date "2021.09.19"]
[Round "8.7"]
[White "Sivuk, Vitaly"]
[Black "Levin, Evgeny A."]
[Result "1/2-1/2"]
[ECO "E37"]
[WhiteElo "2552"]
[BlackElo "2485"]
[Annotator "ChessBase"]
[PlyCount "50"]
[EventDate "2021.09.13"]
[EventType "swiss"]
[EventCountry "RUS"]
[SourceTitle "playchess.com"]
[Source "ChessBase"]
[SourceQuality "1"]
[TimeControl "5400+30"]

1. d4 {[%emt 0:04:07]} Nf6 {[%emt 0:00:59]} 2. c4 {[%emt 0:00:11]} e6 {[%emt 0:00:04]} 3. Nc3 {[%emt 0:00:11]} Bb4 {[%emt 0:00:05]} 4. Qc2 {[%emt 0:00:11]} d5 {[%emt 0:00:59]} 5. a3 {[%emt 0:00:15]} Bxc3+ {[%emt 0:00:49]} 6. Qxc3 {[%emt 0:00:08]} Ne4 {[%emt 0:00:29]} 7. Qc2 {[%emt 0:00:17]} c5 {[%emt 0:00:09]} 8. dxc5 {[%emt 0:01:20]} Nc6 {[%emt 0:00:32]} 9. Nf3 {[%emt 0:06:33]} Qa5+ {[%emt 0:03:32]} 10. Bd2 {[%emt 0:03:15]} Qxc5 {[%emt 0:00:30]} 11. e3 {[%emt 0:00:09]} Nxd2 {[%emt 0:00:05]} 12. Qxd2 {[%emt 0:01:32]} dxc4 {[%emt 0:01:53]} 13. Rc1 {[%emt 0:13:00]} b5 {[%emt 0:05:34]} 14. b3 {[%emt 0:01:47]} Qxa3 {[%emt 0:25:12]} 15. bxc4 {[%emt 0:00:11]} b4 {[%emt 0:04:07]} 16. Bd3 {[%emt 0:04:56]} O-O {[%emt 0:01:14]} 17. Be4 {[%emt 0:00:12]} Rd8 {[%emt 0:08:37]} 18. Qc2 {[%emt 0:00:34]} b3 {[%emt 0:01:40]} 19. Qc3 {[%emt 0:02:58]} Bd7 {[%emt 0:19:21]} 20. Ra1 {[%emt 0:10:40]} Qc5 {[%emt 0:08:46]} 21. Qxb3 {[%emt 0:10:17]} Rab8 {[%emt 0:00:05]} 22. Qc3 {[%emt 0:00:48]} Rb4 {[%emt 0:04:38]} 23. Rc1 {[%emt 0:04:54]} Na5 {[%emt 0:03:59]} 24. Nd2 {[%emt 0:08:42]} Ba4 {[%emt 0:02:18]} 25. Bc2 {[%emt 0:03:36]} Bxc2 {[%emt 0:02:03]} 1/2-1/2

[Event "Panchenko Memorial-A 2021"]
[Site "Chelyabinsk"]
[Date "2021.09.19"]
[Round "8.8"]
[White "Volkov, Sergey"]
[Black "Makarian, Rudik"]
[Result "1-0"]
[ECO "D37"]
[WhiteElo "2534"]
[BlackElo "2474"]
[Annotator "ChessBase"]
[PlyCount "83"]
[EventDate "2021.09.13"]
[EventType "swiss"]
[EventCountry "RUS"]
[SourceTitle "playchess.com"]
[Source "ChessBase"]
[SourceQuality "1"]
[TimeControl "5400+30"]

1. d4 {[%emt 0:00:02]} Nf6 {[%emt 0:03:39]} 2. c4 {[%emt 0:00:08]} e6 {[%emt 0:00:01]} 3. Nf3 {[%emt 0:00:14]} d5 {[%emt 0:00:03]} 4. Nc3 {[%emt 0:00:14]} dxc4 {[%emt 0:00:02]} 5. e4 {[%emt 0:00:20]} b5 {[%emt 0:00:04]} 6. e5 {[%emt 0:00:16]} Nfd7 {[%emt 0:00:02]} 7. Nxb5 {[%emt 0:00:16]} Nb6 {[%emt 0:00:03]} 8. Nc3 {[%emt 0:00:56]} Nc6 {[%emt 0:01:09]} 9. Be2 {[%emt 0:02:07]} Be7 {[%emt 0:05:16]} 10. Be3 {[%emt 0:00:36]} Bb7 {[%emt 0:08:57]} 11. O-O {[%emt 0:06:59]} O-O {[%emt 0:00:14]} 12. Qb1 {[%emt 0:04:14]} Rb8 {[%emt 0:10:56]} 13. Qe4 {[%emt 0:14:00]} Nb4 {[%emt 0:00:49]} 14. Qg4 {[%emt 0:00:58]} Kh8 {[%emt 0:00:03]} 15. Rac1 {[%emt 0:10:57]} Qd7 {[%emt 0:06:25]} 16. Rfd1 {[%emt 0:04:31]} N4d5 {[%emt 0:02:25]} 17. Bd2 {[%emt 0:09:27]} Nxc3 {[%emt 0:03:56]} 18. Bxc3 {[%emt 0:00:42]} Bd5 {[%emt 0:00:04]} 19. Nd2 {[%emt 0:00:47]} f5 {[%emt 0:01:42]} 20. Qh5 {[%emt 0:06:46]} Qc6 {[%emt 0:04:28]} 21. Ba5 {[%emt 0:04:04]} Qb7 {[%emt 0:10:47]} 22. Bxb6 {[%emt 0:06:06]} axb6 {[%emt 0:00:39]} 23. Bxc4 {[%emt 0:00:24]} Bxg2 {[%emt 0:00:42]} 24. Bxe6 {[%emt 0:00:22]} g6 {[%emt 0:06:15]} 25. Qe2 {[%emt 0:02:52]} Rbd8 {[%emt 0:08:13]} 26. f3 {[%emt 0:07:15]} Bh3 {[%emt 0:00:08]} 27. d5 {[%emt 0:00:27]} Bc5+ {[%emt 0:04:24]} 28. Kh1 {[%emt 0:01:11]} c6 {[%emt 0:00:43]} 29. Nb3 {[%emt 0:04:24]} cxd5 {[%emt 0:00:35]} 30. Nxc5 {[%emt 0:00:06]} bxc5 {[%emt 0:00:04]} 31. Rxc5 {[%emt 0:00:11]} d4 {[%emt 0:02:34]} 32. Bc4 {[%emt 0:01:43]} Qe7 {[%emt 0:03:29]} 33. b4 {[%emt 0:00:36]} Rc8 {[%emt 0:00:53]} 34. e6 {[%emt 0:03:24]} Rxc5 {[%emt 0:01:13]} 35. bxc5 {[%emt 0:00:03]} Qxc5 {[%emt 0:00:03]} 36. e7 {[%emt 0:01:04]} Re8 {[%emt 0:00:00]} 37. Re1 {[%emt 0:00:13]} Kg7 {[%emt 0:05:40]} 38. Bb5 {[%emt 0:00:13]} d3 {[%emt 0:00:01]} 39. Qb2+ {[%emt 0:00:43]} Kh6 {[%emt 0:00:04]} 40. Bxe8 {[%emt 0:00:41]} Qd5 {[%emt 0:00:01]} 41. Qf2 {[%emt 0:00:55]} d2 {[%emt 0:02:06]} 42. Rd1 {[%emt 0:00:20]} 1-0